fUSD/lending_fUSD_20251112
["ID","MTS","AMOUNT","RATE_DAILY","PERIOD"]
[393779342,1762977041465,-11132.9369792,0.000403,4]
[393779344,1762977041475,-2500.0,0.000403,2]
[393779346,1762977041484,-10561.87698085,0.0004031,15]
[393779348,1762977041494,-9932.42478765,0.00040315,4]
[393779350,1762977041504,-151.03,0.00040315,2]
[393779352,1762977041514,-10561.87698085,0.00040325,15]
[393779355,1762977041524,-11132.9369792,0.00040331,4]
[393779357,1762977041534,-9932.42478765,0.00040331,4]
[393779359,1762977041543,-11132.9369792,0.00040338,4]
[393779361,1762977041553,-9932.42478765,0.00040338,4]
[393779363,1762977041563,-10561.87698085,0.00040341,15]
[393779365,1762977041573,-11132.9369792,0.00040346,4]
[393779367,1762977041582,-9932.42478765,0.00040346,4]
[393779369,1762977041592,-274.53,0.00040347,14]
[393779371,1762977041603,-33295.3526,0.00040348,2]
[393779373,1762977041612,-1000.0,0.00040348,2]
[393779375,1762977041623,-10561.87698085,0.00040356,15]
[393779377,1762977041632,-500.0,0.00040367,20]
[393779379,1762977041644,-500.0,0.00040367,20]
[393779381,1762977041654,-10561.87698085,0.00040372,15]
[393779383,1762977041665,-2694.0,0.00040372,5]
[393779385,1762977041675,-150.0,0.00040373,5]
[393779387,1762977041685,-11132.9369792,0.00040373,4]
[393779389,1762977041696,-500.0,0.00040376,2]
[393779391,1762977041706,-19864.8495753,0.00040377,4]
[393779394,1762977041716,-157.54260659,0.00040386,20]
[393779396,1762977041727,-500.0,0.00040386,7]
[393779398,1762977041736,-199.0,0.00040386,7]
[393779399,1762977041746,-1291.2252227,0.00040387,2]
[393779402,1762977041757,-14692.36334131,0.00040387,15]
[393779404,1762977041767,-10561.87698085,0.00040387,15]
[393779406,1762977041777,-155.2930148,0.00040387,28]
[393779408,1762977041791,-256.43708934,0.00040387,2]
[393779410,1762977041800,-425.7576315,0.00040387,15]
[393779412,1762977041811,-375.72356148,0.00040387,8]
[393779414,1762977041821,-322.92889213,0.00040387,2]
[393779416,1762977041831,-899.08040984,0.00040387,2]
[393779419,1762977041841,-9932.42478765,0.0004039,4]
[393779421,1762977041851,-2000.0,0.00040399,30]
[393779422,1762977041860,-2500.0,0.000404,6]
[393779423,1762977041870,-2500.0,0.000404,6]
[393779424,1762977041881,-9998.9052,0.000404,2]
[393779425,1762977041893,-5800.0,0.00040435,14]
[393779426,1762977041903,-9932.42478765,0.00040438,4]
[393779427,1762977041915,-1317.0,0.00040448,2]
[393779428,1762977041926,-3427.0,0.00040448,2]
[393779429,1762977041936,-608.0,0.00040448,2]
[393779430,1762977041946,-574.0,0.00040448,2]
[393779431,1762977041956,-1597.0,0.00040448,2]
[393779432,1762977041967,-821.0,0.00040448,2]
[393779433,1762977041976,-1274.0,0.00040448,2]
[393779434,1762977041986,-813.0,0.00040448,2]
[393779435,1762977041999,-150.0,0.00040448,2]
[393779436,1762977042010,-2143.0,0.00040448,2]
[393779437,1762977042020,-6482.0,0.00040448,2]
[393779438,1762977042031,-6666.0,0.00040448,2]
[393779439,1762977042041,-560.0,0.00040448,2]
[393779440,1762977042051,-9932.42478765,0.00040458,4]
[393779441,1762977042061,-1158.96,0.00040466,30]
[393779442,1762977042071,-500.0,0.00040468,15]
[393779443,1762977042081,-500.0,0.00040468,15]
[393779444,1762977042091,-500.0,0.00040468,15]
[393779445,1762977042102,-332.59097415,0.00040468,15]
[393779446,1762977042112,-29797.2743629,0.00040477,4]
[393779447,1762977042122,-151.03,0.00040477,2]
[393779448,1762977042132,-151.03,0.00040477,2]
[393779449,1762977042147,-300.0,0.00040486,10]
[393779450,1762977042157,-443.73507614,0.00040486,20]
[393779451,1762977042168,-159.40146688,0.00040486,2]
[393779452,1762977042178,-500.0,0.00040486,7]
[393779453,1762977042192,-999.0,0.00040486,120]
[393779454,1762977042202,-57985.63409059,0.00040487,29]
[393779455,1762977042215,-660.73611071,0.00040487,30]
[393779456,1762977042226,-660.73611071,0.00040487,30]
[393779457,1762977042236,-18603.0,0.00040487,2]
[393779458,1762977042246,-6050443.12371862,0.00040487,7]
[393779460,1762977043270,-9167.83958599,0.00040487,7]
[393779461,1762977043323,-66657.64910273,0.00040487,7]
[393779462,1762977043335,-25186.3396482,0.00040487,7]
[393779463,1762977043444,-24.49919313,0.00040487,7]
[393779464,1762977043535,-1079.152199,0.00040487,7]
[393779467,1762977043605,-588151.62959469,0.00040487,7]
[393779534,1762977046372,-218.38361862,0.00038343,2]
[393779535,1762977046382,-218.38361862,0.00038548,2]
[393779536,1762977046393,-218.38361862,0.00038799,2]
[393779537,1762977046402,-19.61877016,0.00038938,2]
[393779538,1762977046414,-198.76484846,0.00038938,2]
[393779539,1762977046424,-218.38361862,0.00039224,2]
[393779540,1762977046434,-172.69685081,0.0003947,2]
[393779541,1762977046446,-45.68676781,0.0003947,2]
[393779542,1762977046455,-51955.12489182,0.00040487,7]
[393779543,1762977046467,-1560.78176144,0.00040487,7]
[393779544,1762977046479,-587.90238695,0.00040487,7]
[393779545,1762977046491,-809.68401322,0.00040487,7]
[393779546,1762977046694,-218.38361862,0.00039973,2]
[393779547,1762977046704,-10012.61638138,0.00040487,7]
[393779548,1762977046716,-3425.8779472,0.00040487,7]
[393779549,1762977046727,-1739.80858611,0.00040487,7]
[393779556,1762977046918,-2896.93674157,0.00040487,7]
[393779557,1762977046930,-56277.96610536,0.00040487,7]
[393779558,1762977046941,-19496.61619991,0.00040487,7]
[393779559,1762977046954,-2333.23749002,0.00040487,7]
[393779560,1762977046966,-1058.3,0.00040487,7]
[393779561,1762977046977,-1681.45497266,0.00040487,7]
[393779562,1762977046989,-259.1868346,0.00040487,7]
[393779564,1762977138054,151.0,0.00040487,120]
[393779565,1762977138660,151.0,0.00040487,120]
[393779581,1762977355468,334.186479,0.00040488,120]
[393779582,1762977427482,151.0,0.00040488,120]
[393779583,1762977428126,151.0,0.00040488,120]
[393779584,1762977428773,151.0,0.00040488,120]
[393779585,1762977429478,151.0,0.00040488,120]
[393779586,1762977430252,151.0,0.00040488,120]
[393779587,1762977431134,151.0,0.00040488,120]
[393779588,1762977431947,151.0,0.00040488,120]
[393779589,1762977432557,151.0,0.00040488,120]
[393779590,1762977433171,151.0,0.00040488,120]
[393779697,1762977438075,257.27281501,0.00040488,120]
[393779698,1762977552073,178.86,0.00028682,120]
[393779699,1762977555794,248.90586984,0.000164,2]
[393779700,1762977634146,-338.67182555,0.000189,2]
[393779701,1762977634251,-161.32817445,0.000189,2]
[393779702,1762977634285,-177.3436511,0.000189,2]
[393779703,1762977634346,-152.65617445,0.000189,2]
[393779712,1762977813773,6627.08,0.00013205,2]
[393779713,1762977814046,6627.08,0.00013873,2]
[393779714,1762977814257,6627.08,0.0001454,2]
[393779715,1762977814475,6627.08,0.00015208,2]
[393779716,1762977814692,6627.08,0.00015876,2]
[393779717,1762977814933,6365.69413016,0.00016543,2]
[393779718,1762977814963,261.38586984,0.00016543,2]
[393779719,1762977815352,6627.08,0.00017211,2]
[393779720,1762977815402,265.27,0.00040514,30]
[393779721,1762977815599,6627.08,0.00017879,2]
[393779726,1762978165138,-280.593156,0.0001836,2]
[393779727,1762978165158,-600.0,0.00018453,2]
[393779728,1762978165182,-16.75888769,0.00018453,2]
[393779737,1762978231383,-233.24111231,0.00018453,2]
[393779738,1762978231392,-670.00017445,0.000185,2]
[393779739,1762978231402,-6627.08,0.00018547,2]
[393779740,1762978231412,-250.0,0.0001863,2]
[393779741,1762978231422,-1200.0,0.00018798,2]
[393779742,1762978231432,-252.0,0.00018897,2]
[393779743,1762978231441,-1200.0,0.00018898,2]
[393779744,1762978231451,-194.82036616,0.000189,2]
[393779745,1762978231460,-500.0,0.000189,2]
[393779746,1762978231470,-300.0,0.00019213,2]
[393779747,1762978231479,-6627.08,0.00019214,2]
[393779748,1762978231490,-6627.08,0.00019882,2]
[393779749,1762978231499,-250.0,0.00020298,2]
[393779750,1762978231508,-6627.08,0.0002055,2]
[393779751,1762978231518,-1680.0,0.00020594,2]
[393779752,1762978231528,-587.0,0.00020601,2]
[393779753,1762978231538,-194.82036616,0.0002079,2]
[393779754,1762978231547,-420.0,0.00020938,2]
[393779755,1762978231556,-6627.08,0.00021217,2]
[393779756,1762978231566,-6627.08,0.00021885,2]
[393779757,1762978231575,-218.6,0.00022254,2]
[393779758,1762978231584,-1852.42,0.00022275,2]
[393779759,1762978231594,-1600.0,0.00022552,2]
[393779760,1762978231603,-6627.08,0.00022553,2]
[393779761,1762978231613,-2351.0,0.00022561,2]
[393779762,1762978231622,-587.0,0.00022817,2]
[393779763,1762978231631,-1579.36,0.00023095,2]
[393779764,1762978231640,-6627.08,0.00023221,2]
[393779765,1762978231650,-156.78,0.00023382,2]
[393779766,1762978231659,-6627.08,0.00023888,2]
[393779767,1762978231668,-150.0,0.00024066,2]
[393779768,1762978231680,-150.0,0.00024066,2]
[393779769,1762978231689,-274.53,0.00024172,2]
[393779770,1762978231699,-500.0,0.00024238,2]
[393779771,1762978231708,-500.0,0.00024238,2]
[393779772,1762978231717,-6627.08,0.00024556,2]
[393779774,1762978231729,-3292.0,0.00024716,2]
[393779775,1762978231738,-156.78,0.00024752,2]
[393779776,1762978231748,-823.0,0.00024866,2]
[393779777,1762978231757,-500.0,0.00025109,2]
[393779778,1762978231766,-500.0,0.00025109,2]
[393779779,1762978231775,-6627.08,0.00025224,2]
[393779781,1762978231784,-37887.99449208,0.00025576,2]
[393779783,1762978231793,-15746.64860245,0.00025592,2]
[393779785,1762978231802,-194.82036616,0.00025669,2]
[393779787,1762978231812,-154.11,0.0002567,2]
[393779789,1762978231821,-151.0,0.0002567,2]
[393779791,1762978231830,-151.0,0.0002567,2]
[393779793,1762978231839,-151.0,0.0002567,2]
[393779795,1762978231848,-151.0,0.0002567,2]
[393779797,1762978231857,-151.0,0.0002567,2]
[393779799,1762978231867,-151.0,0.0002567,2]
[393779801,1762978231876,-151.0,0.0002567,2]
[393779803,1762978231885,-151.0,0.0002567,2]
[393779805,1762978231894,-151.0,0.0002567,2]
[393779808,1762978231904,-151.0,0.0002567,2]
[393779811,1762978231913,-151.0,0.0002567,2]
[393779814,1762978231922,-151.0,0.0002567,2]
[393779817,1762978231931,-151.0,0.0002567,2]
[393779820,1762978231940,-151.0,0.0002567,2]
[393779823,1762978231950,-151.0,0.0002567,2]
[393779826,1762978231959,-151.0,0.0002567,2]
[393779829,1762978231968,-151.0,0.0002567,2]
[393779832,1762978231977,-151.0,0.0002567,2]
[393779835,1762978231987,-151.0,0.0002567,2]
[393779837,1762978231996,-151.0,0.0002567,2]
[393779839,1762978232005,-500.0,0.00025673,2]
[393779841,1762978232014,-155.04743738,0.00025673,2]
[393779843,1762978232023,-500.0,0.00025673,2]
[393779845,1762978232034,-4176.43725698,0.00025676,3]
[393779847,1762978232046,-4900.0,0.00025676,3]
[393779849,1762978232056,-3047.99489761,0.00025676,3]
[393779852,1762978232069,-1171.87051943,0.00025676,3]
[393779873,1762978232249,-387.11639996,0.00025676,3]
[393779875,1762978232260,-4108.09153419,0.00025676,3]
[393779877,1762978232271,-2548.73865149,0.00025676,3]
[393779879,1762978232285,-2276.66173496,0.00025676,3]
[393779881,1762978232297,-6895.11092951,0.00025676,3]
[393779884,1762978232308,-1162.71070713,0.00025676,3]
[393779886,1762978232319,-1656.67488001,0.00025676,3]
[393779888,1762978232330,-36096.36348717,0.00025676,3]
[393779890,1762978232340,-19718.32114071,0.00025676,3]
[393779892,1762978232352,-23533.85643685,0.00025676,3]
[393779894,1762978232361,-4448.03872341,0.00025676,3]
[393779897,1762978232372,-2035.91509781,0.00025676,3]
[393779899,1762978232383,-14261.50416,0.00025676,3]
[393779901,1762978232393,-311.74761693,0.00025676,3]
[393779903,1762978232404,-449.454,0.00025676,3]
[393779906,1762978232415,-289.14843026,0.00025676,3]
[393779908,1762978232426,-3754.21273209,0.00025676,3]
[393779910,1762978232435,-500.0,0.00025685,2]
[393779913,1762978232453,-443.73507614,0.00025685,2]
[393779915,1762978232464,-9651.26075492,0.00025685,2]
[393779917,1762978232474,-500.0,0.00025685,2]
[393779919,1762978232484,-500.0,0.00025685,2]
[393779921,1762978232494,-500.0,0.00025685,2]
[393779923,1762978232504,-500.0,0.00025685,2]
[393779925,1762978232513,-157.54260659,0.00025685,2]
[393779927,1762978232523,-500.0,0.00025685,2]
[393779929,1762978232532,-500.0,0.00025685,2]
[393779931,1762978232542,-500.0,0.00025685,2]
[393779933,1762978232551,-500.0,0.00025685,2]
[393779935,1762978232561,-398.85235142,0.00025685,2]
[393779936,1762978232570,-500.0,0.00025685,2]
[393779937,1762978232580,-500.0,0.00025685,2]
[393779938,1762978232589,-299.67174949,0.00025685,2]
[393779939,1762978232601,-200.32825051,0.00025685,2]
[393779940,1762978232610,-607.39,0.00025685,2]
[393779941,1762978232619,-500.0,0.00025685,2]
[393779942,1762978232628,-500.0,0.00025685,2]
[393779943,1762978232638,-397.74622332,0.00025686,2]
[393779958,1762978237357,-485.54961453,0.00025686,2]
[393779960,1762978237388,-317.39809363,0.00025686,2]
[393779961,1762978237399,-853.85322639,0.00025686,2]
[393779962,1762978237413,-778.58817429,0.00025686,2]
[393779963,1762978237423,-1446.59000314,0.00025686,2]
[393779964,1762978237435,-1215.20249003,0.00025686,2]
[393779965,1762978237450,-586.91459952,0.00025686,2]
[393779966,1762978237460,-252.251498,0.00025686,2]
[393779967,1762978237472,-1023.37115,0.00025686,2]
[393779968,1762978237483,-599.24625432,0.00025686,2]
[393779969,1762978237493,-412043.28867283,0.00025686,2]
[393779970,1762978237502,-525.41701014,0.00025692,2]
[393779972,1762978237511,-168.2340994,0.00025792,2]
[393779975,1762978237524,-12775.0103802,0.00025882,3]
[393779977,1762978237533,-6627.08,0.00025892,2]
[393779979,1762978237542,-154.12,0.00025944,2]
[393779981,1762978237551,-12408.8831752,0.00026251,3]
[393779983,1762978237560,-12775.0103802,0.00026251,3]
[393779985,1762978237569,-438.88,0.00026361,2]
[393779987,1762978237578,-3000.0,0.000269,9]
[393779989,1762978237587,-4609.0,0.00027078,2]
[393779990,1762978237596,-500.0,0.00027097,2]
[393779993,1762978237606,-500.0,0.00027097,2]
[393779994,1762978237615,-500.0,0.00027097,2]
[393779996,1762978237625,-500.0,0.00027097,2]
[393779997,1762978237633,-353.25578801,0.00027097,2]
[393779998,1762978237643,-500.0,0.00027097,2]
[393779999,1762978237652,-500.0,0.00027097,2]
[393780000,1762978237661,-500.0,0.00027097,2]
[393780001,1762978237670,-430.64019156,0.00027097,2]
[393780002,1762978237681,-500.0,0.00027097,2]
[393780003,1762978237690,-500.0,0.00027097,2]
[393780004,1762978237699,-500.0,0.00027097,2]
[393780005,1762978237709,-1152.0,0.00027098,2]
[393780006,1762978237718,-37887.99449207,0.00027225,2]
[393780007,1762978237727,-15746.64860237,0.00027239,2]
[393780008,1762978237737,-525.4170101,0.00027328,2]
[393780009,1762978237746,-501.17569297,0.00027373,2]
[393780010,1762978237755,-500.0,0.00027373,2]
[393780011,1762978237764,-500.0,0.00027373,2]
[393780012,1762978237773,-500.0,0.00027373,2]
[393780013,1762978237783,-500.0,0.00027373,2]
[393780014,1762978237792,-500.0,0.00027373,2]
[393780015,1762978237802,-12775.0103802,0.00027376,3]
[393780016,1762978237811,-38325.0311407,0.00027377,3]
[393780017,1762978237821,-12408.8831752,0.00027386,3]
[393780018,1762978237830,-86862.1822261,0.00027387,3]
[393780019,1762978237840,-102200.083042,0.00027387,3]
[393780020,1762978237849,-151.03,0.00027387,2]
[393780021,1762978237858,-931.7,0.00027397,2]
[393780022,1762978237868,-150.99,0.00027397,2]
[393780023,1762978237878,-150.99,0.00027397,2]
[393780024,1762978237887,-1591.21,0.00027397,2]
[393780025,1762978237895,-999.99,0.00027397,2]
[393780026,1762978237904,-61032.8,0.00027397,10]
[393780027,1762978237914,-9999.99,0.00027397,2]
[393780028,1762978237923,-9999.99,0.00027397,2]
[393780029,1762978237934,-1721.07,0.00027397,2]
[393780030,1762978237943,-9999.99,0.00027397,2]
[393780031,1762978237953,-322.45,0.00027397,2]
[393780032,1762978237962,-82320.83,0.00027397,2]
[393780033,1762978237972,-9999.99,0.00027397,2]
[393780034,1762978237981,-768.05,0.00027397,2]
[393780035,1762978237991,-166.66,0.00027492,2]
[393780036,1762978238000,-200.0,0.00027619,2]
[393780037,1762978238010,-12408.8831752,0.00027759,3]
[393780038,1762978238020,-12775.0103802,0.00027814,3]
[393780039,1762978238030,-12408.8831752,0.00027824,3]
[393780040,1762978238040,-438.88,0.00027825,2]
[393780041,1762978238050,-1000.0,0.00027921,5]
[393780042,1762978238060,-517.85474684,0.00027921,5]
[393780043,1762978238070,-1001.59941508,0.00027921,5]
[393780044,1762978238080,-1000.0,0.00027921,5]
[393780045,1762978238089,-166.66,0.000284,2]
[393780046,1762978238099,-506.18028104,0.00028468,5]
[393780047,1762978238109,-341.58239599,0.00028468,5]
[393780048,1762978238127,-168.23409936,0.00028717,2]
[393780049,1762978238137,-12775.0103802,0.00028732,3]
[393780050,1762978238146,-12408.8831752,0.00028743,3]
[393780051,1762978238156,-664.2,0.000288,7]
[393780052,1762978238166,-297.35,0.000288,7]
[393780053,1762978238177,-37887.99449207,0.00028874,2]
[393780054,1762978238187,-15746.64860237,0.00028887,2]
[393780055,1762978238197,-161.72481843,0.00028907,2]
[393780056,1762978238206,-525.4170101,0.00028964,2]
[393780057,1762978238216,-200.0,0.00029237,2]
[393780058,1762978238227,-438.88,0.0002929,2]
[393780059,1762978238236,-166.66,0.00029307,2]
[393780060,1762978238246,-12775.0103802,0.00029397,3]
[393780061,1762978238255,-367.0,0.0002953,2]
[393780062,1762978238265,-6453.0,0.00029664,2]
[393780063,1762978238281,-12408.8831752,0.00029798,3]
[393780064,1762978238291,-12775.0103802,0.0002989,3]
[393780065,1762978238300,-6100.0,0.000299,10]
[393780066,1762978238310,-500.0,0.00030192,2]
[393780067,1762978238319,-12408.8831752,0.00030199,3]
[393780068,1762978238330,-166.66,0.00030215,2]
[393780069,1762978238340,-199.0,0.0003041,7]
[393780070,1762978238349,-37887.99449207,0.00030523,2]
[393780071,1762978238368,-15746.64860237,0.00030534,2]
[393780072,1762978238380,-525.4170101,0.00030601,15]
[393780073,1762978238389,-12775.0103802,0.00030665,3]
[393780074,1762978238399,-150.0,0.00030673,5]
[393780075,1762978238408,-12408.8831752,0.00030675,3]
[393780076,1762978238418,-38325.0311407,0.00030675,3]
[393780077,1762978238427,-88546.25,0.00030685,30]
[393780078,1762978238437,-438.88,0.00030754,2]
[393780079,1762978238447,-199.0,0.00030958,8]
[393780080,1762978238457,-12775.0103802,0.0003097,3]
[393780081,1762978238466,-297.35,0.00031,30]
[393780082,1762978238476,-166.66,0.00031122,2]
[393780083,1762978238486,-182.78404564,0.00031221,5]
[393780084,1762978238495,-199.0,0.00031506,9]
[393780085,1762978238505,-664.2,0.000316,7]
[393780086,1762978238514,-168.23409936,0.00031642,2]
[393780087,1762978238523,-12775.0103802,0.00031936,3]
[393780088,1762978238533,-500.0,0.00031945,2]
[393780089,1762978238542,-41693.4,0.00031946,2]
[393780090,1762978238552,-166.66,0.0003203,2]
[393780091,1762978238561,-199.0,0.00032054,10]
[393780092,1762978238571,-37887.99449207,0.00032172,2]
[393780093,1762978238581,-15746.64860237,0.00032181,2]
[393780094,1762978238590,-438.88,0.00032219,2]
[393780095,1762978238600,-525.4170101,0.00032237,15]
[393780096,1762978238609,-178.86,0.00032267,120]
[393780097,1762978238619,-1579.36,0.00032332,2]
[393780098,1762978238628,-9035.0,0.00032498,3]
[393780099,1762978238638,-12775.0103802,0.00032543,3]
[393780100,1762978238648,-199.0,0.00032602,11]
[393780101,1762978238658,-551.61822093,0.00032771,20]
[393780102,1762978238668,-610.0,0.00032944,2]
[393780103,1762978238677,-1171.492,0.00033005,34]
[393780104,1762978238687,-297.35,0.000331,30]
[393780105,1762978238697,-12775.0103802,0.0003314,3]
[393780106,1762978238707,-199.0,0.0003315,12]
[393780107,1762978238716,-478.56668374,0.00033154,2]
[393780108,1762978238725,-2688.0,0.00033192,5]
[393780109,1762978238735,-3307.9478206,0.000332,2]
[393780110,1762978238744,-274.53,0.00033427,2]
[393780111,1762978238754,-438.88,0.00033683,2]
[393780112,1762978238763,-199.0,0.00033698,13]
[393780113,1762978238773,-37887.99449207,0.00033822,2]
[393780114,1762978238783,-15746.64860237,0.00033829,2]
[393780115,1762978238792,-525.4170101,0.00033873,15]
[393780116,1762978238802,-199.0,0.00034246,14]
[393780117,1762978238812,-664.2,0.000343,14]
[393780118,1762978238822,-156.203307,0.0003452,20]
[393780119,1762978238832,-161.644429,0.0003452,20]
[393780120,1762978238842,-161.644429,0.0003452,20]
[393780121,1762978238852,-303.155328,0.0003452,20]
[393780122,1762978238863,-303.155328,0.0003452,20]
[393780123,1762978238873,-303.155328,0.0003452,20]
[393780124,1762978238883,-168.23409936,0.00034568,2]
[393780125,1762978238894,-12775.0103802,0.00034714,3]
[393780126,1762978238904,-2500.0,0.00034724,5]
[393780127,1762978238915,-2500.0,0.00034724,5]
[393780128,1762978238926,-199.0,0.00034794,15]
[393780129,1762978238940,-9200.0,0.000349,12]
[393780130,1762978238951,-438.88,0.00035148,2]
[393780131,1762978238961,-173.57449166,0.0003515,5]
[393780132,1762978238972,-500.0,0.00035325,5]
[393780133,1762978238982,-199.0,0.00035342,16]
[393780134,1762978238993,-18603.0,0.00035456,2]
[393780135,1762978239003,-37887.99449207,0.00035471,2]
[393780136,1762978239013,-15746.64860237,0.00035476,2]
[393780137,1762978239024,-525.4170101,0.00035509,15]
[393780138,1762978239034,-830.0,0.00035603,3]
[393780139,1762978239049,-12775.0103802,0.00035689,3]
[393780140,1762978239059,-1000.0,0.00035812,5]
[393780141,1762978239069,-178.86,0.00035852,120]
[393780142,1762978239079,-199.0,0.0003589,17]
[393780143,1762978239086,-297.35,0.000359,30]
[393780144,1762978239094,-1274.62,0.00036,2]
[393780145,1762978239103,-2500.0,0.00036024,2]
[393780146,1762978239113,-159.40146688,0.00036044,2]
[393780147,1762978239123,-3745.0,0.000361,5]
[393780148,1762978239132,-500.0,0.00036117,7]
[393780149,1762978239142,-5000.0,0.00036215,2]
[393780150,1762978239152,-2530.68,0.00036268,2]
[393780151,1762978239162,-2500.0,0.00036335,2]
[393780152,1762978239172,-664.2,0.000364,14]
[393780153,1762978239183,-4499.67,0.00036426,2]
[393780154,1762978239193,-25000.0,0.00036438,2]
[393780155,1762978239202,-199.0,0.00036438,18]
[393780156,1762978239212,-1000.5618557,0.00036466,30]
[393780157,1762978239221,-1000.59037472,0.00036466,30]
[393780158,1762978239231,-1000.0,0.00036466,30]
[393780159,1762978239240,-1000.0,0.00036466,30]
[393780160,1762978239250,-438.88,0.00036612,2]
[393780161,1762978239259,-1274.62,0.0003672,2]
[393780162,1762978239269,-179.43741248,0.00036856,30]
[393780163,1762978239280,-4615.76,0.00036953,2]
[393780164,1762978239291,-274.53,0.00036963,2]
[393780166,1762978239300,-199.0,0.00036986,19]
[393780167,1762978239309,-37887.99449207,0.0003712,2]
[393780168,1762978239319,-525.4170101,0.00037146,15]
[393780169,1762978239330,-2685.43,0.00037351,2]
[393780170,1762978239339,-1274.62,0.0003744,2]
[393780171,1762978239349,-168.23409936,0.00037493,2]
[393780172,1762978239360,-199.0,0.00037534,20]
[393780173,1762978239369,-271.47,0.00037864,2]
[393780174,1762978239378,-150.0,0.00037984,7]
[393780175,1762978239388,-2000.0,0.00038,2]
[393780176,1762978239397,-438.88,0.00038077,2]
[393780177,1762978239406,-199.0,0.00038082,21]
[393780178,1762978239415,-574.0,0.00038302,2]
[393780179,1762978239424,-1597.0,0.00038302,2]
[393780180,1762978239435,-821.0,0.00038302,2]
[393780181,1762978239444,-813.0,0.00038302,2]
[393780182,1762978239454,-1274.0,0.00038302,2]
[393780183,1762978239464,-1189.0,0.00038302,2]
[393780184,1762978239473,-580.162,0.00038302,2]
[393780185,1762978239482,-2143.0,0.00038302,2]
[393780186,1762978239491,-6666.0,0.00038302,2]
[393780187,1762978239500,-560.0,0.00038302,2]
[393780188,1762978239509,-529.974941,0.000386,8]
[393780189,1762978239518,-199.0,0.0003863,22]
[393780190,1762978239528,-6064.69,0.00038678,2]
[393780191,1762978239538,-1187.41,0.00038678,2]
[393780192,1762978239547,-3328.58,0.00038678,2]
[393780193,1762978239556,-220.0,0.00038702,4]
[393780194,1762978239565,-37887.99449207,0.00038769,2]
[393780195,1762978239574,-525.4170101,0.00038782,15]
[393780196,1762978239583,-999.0,0.00038957,120]
[393780197,1762978239593,-2000.0,0.00039,2]
[393780198,1762978239602,-356.24714282,0.00039,120]
[393780199,1762978239612,-172.09582685,0.00039,2]
[393780200,1762978239621,-150.0,0.00039169,2]
[393780201,1762978239630,-761.33,0.00039172,2]
[393780202,1762978239639,-4748.52,0.00039177,120]
[393780203,1762978239648,-162.35230314,0.00039178,23]
[393780204,1762978239658,-6938.43,0.00039388,2]
[393780205,1762978239667,-178.86,0.00039437,120]
[393780206,1762978239677,-219.57596305,0.00039498,2]
[393780207,1762978239686,-216.3,0.000395,120]
[393780208,1762978239695,-653.58,0.00039506,2]
[393780209,1762978239705,-1000.0,0.00039513,120]
[393780210,1762978239714,-438.88,0.00039541,2]
[393780211,1762978239724,-219.57596305,0.00039772,2]
[393780213,1762978239733,-999.0,0.00039779,120]
[393780215,1762978239742,-12300.0,0.000399,14]
[393780217,1762978239751,-1743.0,0.00039973,120]
[393780219,1762978239760,-534.71233436,0.00039973,2]
[393780221,1762978239769,-229.29448095,0.00039973,2]
[393780223,1762978239778,-2031.0,0.0004,2]
[393780225,1762978239788,-2031.0,0.0004,2]
[393780228,1762978239798,-2031.0,0.0004,2]
[393780230,1762978239811,-2031.0,0.0004,2]
[393780232,1762978239820,-2031.0,0.0004,2]
[393780234,1762978239830,-2031.0,0.0004,2]
[393780237,1762978239839,-2031.0,0.0004,2]
[393780240,1762978239848,-2031.0,0.0004,2]